bitfinex-derivatives/quotes_BTCF0:USTF0_20241110
["timestamp","ask_amount","ask_price","bid_price","bid_amount"]
[1731263544989,0.061795,80827.0,80821.0,0.00013298]
[1731263545292,0.14075256,80822.0,80814.0,0.061805]
[1731263545983,0.14075256,80822.0,80807.0,0.340333]
[1731263546188,0.14075256,80822.0,80820.0,0.0618]
[1731263546388,0.14075256,80822.0,80807.0,0.340333]
[1731263546687,0.14075256,80822.0,80807.0,0.29131744]
[1731263547079,0.14075256,80822.0,80810.0,0.061808]
[1731263547080,0.20255156,80822.0,80810.0,0.061808]
[1731263547288,0.14075256,80813.0,80807.0,0.29131744]
[1731263547489,0.14075256,80813.0,80811.0,0.061807]
[1731263548284,0.14075256,80813.0,80807.0,0.34120133]
[1731263549089,0.061807,80812.0,80807.0,0.40301133]
[1731263549388,0.14075256,80813.0,80807.0,0.04988389]
[1731263549389,0.50155256,80813.0,80807.0,0.04988389]
[1731263549593,0.14075256,80813.0,80800.0,0.10013797]
[1731263549888,0.14075256,80813.0,80807.0,0.06181]
[1731263550190,0.14075256,80813.0,80808.0,0.061809]
[1731263550591,0.14075256,80813.0,80800.0,0.148992]
[1731263550889,0.14075256,80813.0,80811.0,0.061807]
[1731263551588,0.14075256,80813.0,80808.0,0.3608]
[1731263551589,0.061791,80833.0,80808.0,0.3608]
[1731263551887,0.14075256,80810.0,80800.0,0.46093797]
[1731263552103,0.14075256,80826.0,80808.0,0.3608]
[1731263552285,0.14075256,80826.0,80820.0,0.0618]
[1731263553187,0.00010354,80832.0,80831.0,0.061792]
[1731263553393,0.00010354,80832.0,80824.0,0.3608]
[1731263553592,0.14075256,80825.0,80814.0,0.061805]
[1731263553991,0.20254956,80825.0,80814.0,0.061805]
[1731263554190,0.14075256,80817.0,80816.0,0.061803]
[1731263554596,0.14075256,80817.0,80810.0,0.061808]
[1731263554788,0.061807,80811.0,80809.0,0.04977737]
[1731263555094,0.06181,80807.0,80800.0,0.10013797]
[1731263555291,0.14075256,80803.0,80800.0,0.10013797]
[1731263555685,0.14075256,80803.0,80800.0,0.14998467]
[1731263555881,0.14075256,80803.0,80800.0,0.10737576]
[1731263556095,0.14075256,80812.0,80800.0,0.10737576]
[1731263556290,0.14075256,80812.0,80807.0,0.06181]
[1731263556594,0.14075256,80820.0,80814.0,0.061804]
[1731263556802,0.3608,80828.0,80814.0,0.3608]
[1731263556990,0.14075256,80821.0,80819.0,0.061801]
[1731263557592,0.20255256,80821.0,80810.0,0.061808]
[1731263557794,0.14075256,80813.0,80810.0,0.061808]
[1731263557990,0.14075256,80813.0,80806.0,0.41086954]
[1731263558190,0.14075256,80825.0,80806.0,0.41086954]
[1731263558591,0.14075256,80809.0,80808.0,0.061809]
[1731263558892,0.14075256,80809.0,80807.0,0.3608]
[1731263559100,0.14075256,80809.0,80800.0,0.05816906]
[1731263559303,0.14075256,80801.0,80800.0,0.10628137]
[1731263561290,0.14075256,80801.0,80800.0,0.05752906]
[1731263561994,0.14075256,80801.0,80800.0,0.05922905]
[1731263562198,0.14075256,80801.0,80800.0,0.42002905]
[1731263562695,0.14075256,80817.0,80810.0,0.061808]
[1731263563001,0.14075256,80817.0,80816.0,0.3608]
[1731263563292,0.14075256,80817.0,80816.0,0.36249999]
[1731263563892,0.14075256,80817.0,80816.0,0.00169999]
[1731263564088,0.20255556,80817.0,80816.0,0.00169999]
[1731263564288,0.14075256,80817.0,80800.0,0.05752906]
[1731263564493,0.50155256,80803.0,80800.0,0.05752906]
[1731263564792,0.061814,80802.0,80800.0,0.10746512]
[1731263565305,0.3608,80801.0,80800.0,0.05752906]
[1731263565802,0.061814,80802.0,80800.0,0.05752906]
[1731263569094,0.50243256,80803.0,80794.0,0.00185642]
[1731263569095,0.14075256,80801.0,80794.0,0.00185642]
[1731263569303,0.42262,80795.0,80794.0,0.00185642]
[1731263569507,0.06182,80795.0,80794.0,0.00185642]
[1731263570799,0.06195304,80795.0,80794.0,0.00185642]
[1731263570996,0.06191304,80795.0,80794.0,0.00185642]
[1731263571202,0.06191304,80795.0,80794.0,0.00128304]
[1731263571598,0.06187304,80795.0,80794.0,0.00128304]
[1731263571794,0.06183304,80795.0,80794.0,0.00128304]
[1731263572206,0.06179304,80795.0,80794.0,0.00086261]
[1731263572606,0.061822,80792.0,80789.0,0.04905168]
[1731263572810,0.061822,80792.0,80788.0,0.061825]
[1731263573108,0.00013304,80795.0,80789.0,0.061824]
[1731263573309,0.06195304,80795.0,80790.0,0.061823]
[1731263573507,0.06195304,80795.0,80788.0,0.3608]
[1731263573508,0.00013304,80795.0,80788.0,0.3608]
[1731263573722,0.00013304,80795.0,80794.0,0.06182]
[1731263574009,0.00185724,80813.0,80794.0,0.06182]
[1731263574010,0.1426098,80813.0,80794.0,0.06182]
[1731263574201,0.3608,80827.0,80805.0,0.3608]
[1731263574202,0.14075256,80822.0,80805.0,0.3608]
[1731263574507,0.14075256,80814.0,80812.0,0.061806]
[1731263575214,0.14075256,80814.0,80798.0,0.061817]
[1731263575215,0.00015225,80813.0,80798.0,0.061817]
[1731263575409,0.061819,80797.0,80791.0,0.061822]
[1731263575617,0.20257156,80797.0,80791.0,0.061822]
[1731263575909,0.20257156,80797.0,80789.0,0.1373]
[1731263575910,0.06182,80795.0,80793.0,0.0247562]
[1731263576510,0.14075256,80797.0,80793.0,0.0247562]
[1731263576511,0.14075256,80797.0,80795.0,0.061819]
[1731263576910,0.14075256,80797.0,80795.0,0.422619]
[1731263577710,0.14071256,80797.0,80795.0,0.422619]
[1731263578309,0.14067256,80797.0,80795.0,0.422619]
[1731263578510,0.14063256,80797.0,80795.0,0.422619]
[1731263578814,0.14059256,80797.0,80795.0,0.422619]
[1731263579110,0.14055256,80797.0,80795.0,0.422619]
[1731263579332,0.061807,80812.0,80806.0,0.061811]
[1731263579506,0.14075256,80807.0,80806.0,0.061811]
[1731263579708,0.14075256,80824.0,80812.0,0.061807]
[1731263580011,0.061788,80837.0,80833.0,0.06179]
[1731263580208,0.00181658,80839.0,80821.0,0.637515]
[1731263580409,0.3608,80855.0,80838.0,0.422587]
[1731263580410,0.14071256,80851.0,80838.0,0.422587]
[1731263580610,0.04986,80852.0,80847.0,0.3608]
[1731263580816,0.00012393,80851.0,80847.0,0.3608]
[1731263581014,0.14075256,80848.0,80843.0,0.061783]
[1731263581217,0.00012393,80851.0,80843.0,0.061783]
[1731263581417,0.14075256,80844.0,80843.0,0.061783]
[1731263581719,0.14071256,80844.0,80843.0,0.061783]
[1731263581915,0.14071256,80844.0,80839.0,0.3608]
[1731263582106,0.14067256,80844.0,80839.0,0.41057579]
[1731263582309,0.061787,80837.0,80831.0,0.061792]
[1731263582504,0.061787,80837.0,80819.0,0.3608]
[1731263582505,0.28146512,80832.0,80819.0,0.3608]
[1731263582715,0.14075256,80820.0,80819.0,0.3608]
[1731263582918,0.14075256,80820.0,80819.0,0.40942662]
[1731263583616,0.14075256,80820.0,80819.0,0.3608]
[1731263584318,0.14075256,80820.0,80818.0,0.061801]
[1731263584620,0.14075256,80834.0,80833.0,0.06179]
[1731263585119,0.14075256,80842.0,80833.0,0.37112]
[1731263585416,0.1318,80850.0,80829.0,0.1386]
[1731263585417,0.14075256,80835.0,80829.0,0.1386]
[1731263585620,0.14075256,80835.0,80834.0,0.06179]
[1731263588316,0.14075256,80835.0,80828.0,0.11213506]
[1731263588511,0.20254156,80835.0,80831.0,0.061792]
[1731263588720,0.20254156,80835.0,80824.0,0.27394]
[1731263588911,0.061745,80841.0,80832.0,0.061791]
[1731263589107,0.061745,80841.0,80824.0,0.27394]
[1731263589315,0.14075256,80825.0,80824.0,0.38418148]
[1731263590215,0.3608,80842.0,80824.0,0.99354448]
[1731263590419,0.00012393,80851.0,80849.0,0.061778]
[1731263590607,0.133,80874.0,80850.0,0.3608]
[1731263590815,0.14075256,80864.0,80859.0,0.3608]
[1731263591010,0.14075256,80860.0,80859.0,0.3608]
[1731263591220,0.14075256,80860.0,80859.0,0.422571]
[1731263591523,0.14087222,80860.0,80859.0,0.422571]
[1731263592320,0.14087222,80860.0,80859.0,0.061771]
[1731263593219,0.14087222,80860.0,80859.0,0.06347019]
[1731263593415,0.14087222,80860.0,80850.0,0.36152]
[1731263593719,0.061773,80856.0,80852.0,0.061776]
[1731263593922,0.061777,80852.0,80850.0,0.04968789]
[1731263594122,0.3608,80855.0,80841.0,0.02473999]
[1731263594427,0.14075256,80856.0,80854.0,0.061774]
[1731263596626,0.14075256,80856.0,80850.0,0.3608]
[1731263596921,0.14075256,80856.0,80849.0,0.0483184]
[1731263597120,0.14075256,80850.0,80848.0,0.061778]
[1731263597312,0.14075256,80850.0,80835.0,0.5002]
[1731263597313,0.14075256,80850.0,80835.0,0.49952]
[1731263597523,0.14075256,80842.0,80835.0,0.49952]
[1731263597722,0.14075256,80842.0,80840.0,0.061784]
[1731263597917,0.00011966,80860.0,80852.0,0.061775]
[1731263598123,0.1374,80859.0,80844.0,0.3608]
[1731263598317,0.1374,80859.0,80845.0,0.061781]
[1731263598318,0.3608,80857.0,80845.0,0.061781]
[1731263598518,0.422573,80857.0,80844.0,0.3608]
[1731263598724,0.061773,80857.0,80844.0,0.3608]
[1731263599024,0.00011966,80860.0,80852.0,0.3608]
[1731263599227,0.03794137,80859.0,80852.0,0.3608]
[1731263599428,0.03794137,80858.0,80852.0,0.3608]
[1731263599627,0.14075256,80853.0,80852.0,0.422576]
[1731263599820,0.14075256,80853.0,80844.0,0.41030668]
[1731263600016,0.14075256,80845.0,80844.0,0.11128868]
[1731263600723,0.14075256,80845.0,80837.0,0.061787]
[1731263600919,0.14075256,80845.0,80829.0,0.00185563]
[1731263600920,0.64230512,80838.0,80829.0,0.00185563]
[1731263601118,0.64230512,80838.0,80795.0,0.3608]
[1731263601119,0.061794,80829.0,80810.0,0.061808]
[1731263601319,0.14075256,80811.0,80810.0,0.061808]
[1731263602035,0.17871383,80811.0,80809.0,0.061809]
[1731263602225,0.50155256,80811.0,80809.0,0.061809]
[1731263602524,0.03796161,80810.0,80809.0,0.061809]
[1731263602931,0.03792161,80810.0,80809.0,0.061809]
[1731263603130,0.50155256,80811.0,80809.0,0.061809]
[1731263603428,0.3608,80811.0,80807.0,0.00012566]
[1731263603617,0.14075256,80808.0,80807.0,0.00012566]
[1731263604027,0.14075256,80808.0,80807.0,8.566e-05]
[1731263605424,0.14075256,80808.0,80797.0,0.04858082]
[1731263605731,0.14075256,80798.0,80797.0,0.061818]
[1731263605929,0.3608,80801.0,80797.0,0.061818]
[1731263606227,0.14075256,80813.0,80797.0,0.061818]
[1731263606228,0.3608,80824.0,80823.0,0.061798]
[1731263606925,0.14075256,80831.0,80816.0,0.00016038]
[1731263607125,0.3608,80834.0,80822.0,0.061799]
[1731263607126,0.14075256,80823.0,80822.0,0.061799]
[1731263607519,0.3608,80826.0,80825.0,0.061797]
[1731263607724,0.36076,80826.0,80825.0,0.061797]
[1731263607921,0.3608,80841.0,80825.0,0.18496859]
[1731263608123,0.13512909,80834.0,80820.0,0.3608]
[1731263608431,0.13512909,80834.0,80832.0,0.061791]
[1731263609631,0.3608,80841.0,80830.0,0.3608]
[1731263609834,0.3608,80841.0,80822.0,0.061798]
[1731263609835,0.3608,80841.0,80836.0,0.061788]
[1731263610930,0.3608,80858.0,80836.0,0.793708]
[1731263611134,0.14075256,80841.0,80836.0,0.54636821]
[1731263611331,0.14075256,80841.0,80830.0,0.13876]
[1731263611533,0.14075256,80829.0,80828.0,0.061794]
[1731263611930,0.3608,80841.0,80834.0,0.061789]
[1731263612131,0.14075256,80835.0,80834.0,0.061789]
[1731263612431,0.14075256,80835.0,80834.0,0.422589]
[1731263612630,0.00011663,80840.0,80828.0,0.02473421]
[1731263612935,0.00011663,80840.0,80839.0,0.061786]
[1731263613336,0.3608,80858.0,80857.0,0.061772]
[1731263613523,0.3608,80858.0,80857.0,0.04446074]
[1731263614129,0.3608,80858.0,80857.0,0.03200556]
[1731263614737,0.5821233,80858.0,80850.0,0.061777]
[1731263615136,0.061773,80857.0,80853.0,0.061775]
[1731263615338,0.36156,80858.0,80843.0,0.42315154]
[1731263615635,0.00076,80870.0,80869.0,0.061763]
[1731263615824,0.03793358,80873.0,80869.0,0.061763]
[1731263616025,0.04432498,80889.0,80882.0,0.061753]
[1731263616233,0.2830563,80908.0,80887.0,0.3608]
[1731263616234,0.2213233,80908.0,80887.0,0.3608]
[1731263616430,0.2213233,80908.0,80899.0,0.06174]
[1731263617239,0.13318275,80900.0,80899.0,0.06174]
[1731263617434,0.10293,80900.0,80899.0,0.06174]
[1731263618242,0.031713,80900.0,80899.0,1.2786668]
[1731263618535,0.00185471,80921.0,80899.0,1.0556068]
[1731263618536,0.2213233,80913.0,80899.0,1.0556068]
[1731263618734,0.2213233,80913.0,80911.0,0.3608]
[1731263618937,0.2213233,80913.0,80911.0,0.42253]
[1731263619840,0.2213233,80913.0,80911.0,0.06173]
[1731263620029,0.2213233,80913.0,80906.0,0.06308983]
[1731263620336,0.00185471,80921.0,80907.0,0.3608]
[1731263620634,0.00185471,80921.0,80919.0,0.061724]
[1731263620835,0.00185471,80921.0,80910.0,0.061731]
[1731263621137,0.2213233,80911.0,80910.0,0.061731]
[1731263623330,0.2213233,80911.0,80899.0,0.02472236]
[1731263623535,0.2213233,80911.0,80899.0,0.16764236]
[1731263623939,0.2213233,80911.0,80905.0,0.00169817]
[1731263624137,0.2830543,80911.0,80905.0,0.00169817]
[1731263624639,0.2213233,80911.0,80905.0,0.00169817]
[1731263624839,0.061733,80909.0,80906.0,0.02472236]
[1731263625033,0.2213233,80911.0,80906.0,0.02472236]
[1731263625229,0.2213233,80911.0,80907.0,0.00169817]
[1731263625632,0.422533,80908.0,80907.0,0.00169817]
[1731263626936,0.422533,80908.0,80837.0,0.03623258]
[1731263626937,0.7316,80908.0,80871.0,0.3608]
[1731263627130,0.7316,80908.0,80878.0,0.061756]
[1731263627131,0.5821233,80887.0,80878.0,0.061756]
[1731263628140,0.3608,80894.0,80886.0,0.06395]
[1731263628330,0.3608,80894.0,80888.0,0.061748]
[1731263628738,0.3608,80894.0,80886.0,0.0022]
[1731263628944,0.2213233,80887.0,80886.0,0.0022]
[1731263631428,0.3608,80894.0,80893.0,0.061745]
[1731263631631,0.06174,80899.0,80892.0,0.422545]
[1731263631845,0.06174,80899.0,80886.0,0.0022]
[1731263631846,0.061743,80895.0,80886.0,0.0022]
[1731263632041,0.3608,80894.0,80886.0,0.0022]
[1731263632244,0.3608,80894.0,80891.0,0.061746]
[1731263632637,0.061745,80893.0,80886.0,0.06395]
[1731263633046,0.3608,80894.0,80886.0,0.0022]
[1731263633650,0.3608,80894.0,80892.0,0.061745]
[1731263634244,0.3608,80902.0,80901.0,0.061739]
[1731263634441,0.1393,80919.0,80901.0,0.422539]
[1731263634838,0.1393,80919.0,80916.0,0.061727]
[1731263635143,0.1393,80919.0,80901.0,0.422539]
[1731263635144,0.0008,80925.0,80920.0,0.061724]
[1731263635349,0.0149,80930.0,80920.0,0.061724]
[1731263635350,0.2213233,80923.0,80920.0,0.061724]
[1731263635841,0.061724,80920.0,80913.0,0.061729]
[1731263636044,0.2213233,80914.0,80913.0,0.061729]
[1731263636842,0.3608,80926.0,80917.0,0.061726]
[1731263636843,0.14080097,80918.0,80917.0,0.061726]
[1731263637745,0.3608,80926.0,80920.0,0.061724]
[1731263638254,0.14080097,80928.0,80920.0,0.061724]
[1731263638640,0.50160097,80928.0,80920.0,0.061724]
[1731263639240,0.06172,80926.0,80920.0,0.061724]
[1731263639446,0.36265471,80921.0,80920.0,0.061724]
[1731263639638,0.061724,80920.0,80918.0,0.06093659]
[1731263639854,0.14080097,80919.0,80914.0,0.061728]
[1731263640153,0.14080097,80919.0,80917.0,0.061726]
[1731263641446,0.0149,80930.0,80912.0,0.3608]
[1731263641657,0.14080097,80928.0,80920.0,0.3608]
[1731263641850,0.14080097,80928.0,80926.0,0.061719]
[1731263642244,0.0149,80930.0,80929.0,0.061717]
[1731263642447,0.0149,80930.0,80920.0,0.3608]
[1731263642448,0.14080097,80943.0,80920.0,0.3608]
[1731263643052,0.14080097,80943.0,80927.0,0.3608]
[1731263643251,0.3757,80946.0,80945.0,0.061705]
[1731263643953,0.0149,80946.0,80945.0,0.061705]
[1731263644648,0.0149,80946.0,80945.0,0.422505]
[1731263645352,0.0149,80946.0,80945.0,0.793105]
[1731263645752,0.0149,80946.0,80945.0,0.85505035]
[1731263647744,0.0149,80946.0,80945.0,0.48445035]
[1731263648351,0.0149,80946.0,80945.0,0.06194535]
[1731263648555,0.061707,80943.0,80934.0,0.0001169]
[1731263648760,0.0149,80946.0,80945.0,0.061705]
[1731263649652,0.3757,80949.0,80937.0,0.38550907]
[1731263649851,0.4154,81024.0,80937.0,0.38550907]
[1731263649852,0.3608,80988.0,80976.0,0.061681]
[1731263650051,0.3608,80988.0,80944.0,0.3608]
[1731263650052,0.1361,80999.0,80978.0,0.06168]
[1731263650245,0.1361,80999.0,80986.0,0.3608]
[1731263651547,0.14080097,80998.0,80986.0,0.3608]
[1731263653251,0.14080097,80989.0,80978.0,0.3608]
[1731263653451,0.14080097,80981.0,80966.0,0.3608]
[1731263653751,0.14080097,80968.0,80957.0,0.3608]
[1731263654142,0.14080097,80976.0,80957.0,0.3608]
[1731263654345,0.14080097,80976.0,80961.0,0.06213249]
[1731263654557,0.1417,80975.0,80961.0,0.00185259]
[1731263655862,1e-06,80985.0,80974.0,0.50160097]
[1731263656156,0.3608,81011.0,80996.0,0.061666]
[1731263656357,0.3608,81011.0,80992.0,0.3608]
[1731263656655,0.3608,81011.0,80984.0,0.3608]
[1731263656656,0.3608,80994.0,80985.0,0.18444773]
[1731263657054,0.3608,80994.0,80984.0,0.42358976]
[1731263657055,0.50160097,80994.0,80984.0,0.42358976]
[1731263657248,0.3608,80994.0,80984.0,0.42358976]
[1731263657860,0.3608,80994.0,80984.0,0.3608]
[1731263658159,0.4905,80994.0,80984.0,0.3608]
[1731263658350,0.10488564,80994.0,80984.0,0.3608]
[1731263658662,0.14080097,80992.0,80984.0,0.3608]
[1731263658850,0.3319,80994.0,80984.0,0.3608]
[1731263659054,0.3319,80994.0,80975.0,0.00012373]
[1731263659055,0.1347,80993.0,80975.0,0.00012373]
[1731263659251,0.1347,80993.0,80981.0,0.3608]
[1731263661653,0.1337,80992.0,80981.0,0.3608]
[1731263663862,0.3608,80987.0,80986.0,0.02471408]
[1731263664361,0.3608,80987.0,80975.0,0.06332819]
[1731263664362,1.09204,80987.0,80975.0,0.00012373]
[1731263664566,0.58139271,80976.0,80961.0,0.00185259]
[1731263664767,0.58139271,80966.0,80961.0,0.00185259]
[1731263665559,0.00012077,80965.0,80961.0,0.00185259]
[1731263666569,0.73132,80964.0,80948.0,0.00501]
[1731263666758,0.3608,80953.0,80948.0,0.00501]
[1731263667463,0.3608,80952.0,80948.0,0.00501]
[1731263667663,0.3608,80952.0,80944.0,8.931e-05]
[1731263667664,0.061704,80947.0,80944.0,8.931e-05]
[1731263667864,0.58139271,80945.0,80944.0,8.931e-05]
[1731263668063,0.58139271,80945.0,80912.0,0.3608]
[1731263668273,0.28230771,80933.0,80912.0,0.3608]
[1731263668578,0.17316,80932.0,80916.0,0.061726]
[1731263668760,0.17316,80932.0,80925.0,0.06172]
[1731263668961,0.00010504,80931.0,80930.0,0.061716]
[1731263669160,0.00010504,80931.0,80930.0,0.422516]
[1731263671261,0.00010504,80931.0,80922.0,0.0246966]
[1731263672173,0.3608,80946.0,80935.0,0.061713]
[1731263672365,0.3608,80946.0,80928.0,0.061717]
[1731263672562,0.3608,80946.0,80930.0,0.061716]
[1731263672874,0.3608,80946.0,80931.0,0.061715]
[1731263673273,0.00010866,80945.0,80931.0,0.061715]
[1731263673667,0.061707,80943.0,80927.0,0.3608]
[1731263673974,0.3608,80932.0,80926.0,0.06072943]
[1731263674165,0.3608,80932.0,80922.0,0.0246966]
[1731263674370,0.3608,80924.0,80922.0,0.0246966]
[1731263674868,0.3608,80924.0,80902.0,0.54228]
[1731263674869,0.061726,80917.0,80903.0,0.06294928]
[1731263675066,0.3608,80904.0,80903.0,0.00185382]
[1731263675369,0.3608,80904.0,80903.0,0.02656601]
[1731263675574,0.3608,80904.0,80903.0,0.08830301]
[1731263675776,0.3608,80916.0,80903.0,0.08830301]
[1731263675971,0.3608,80916.0,80903.0,0.02656601]
[1731263676175,0.3608,80908.0,80903.0,0.02656601]
[1731263676372,0.3608,80916.0,80903.0,0.02656601]
[1731263676679,0.3608,80916.0,80907.0,0.061734]
[1731263677071,0.061729,80914.0,80903.0,0.00185382]
[1731263677572,0.22059271,80915.0,80903.0,0.00185382]
[1731263677772,0.061736,80905.0,80903.0,0.00185382]
[1731263682169,0.061739,80901.0,80898.0,0.00011984]
[1731263682370,0.9208,80904.0,80878.0,0.06320366]
[1731263682371,0.06174,80899.0,80878.0,0.06320366]
[1731263682580,0.92144,80904.0,80865.0,0.00185486]
[1731263682581,0.061759,80875.0,80865.0,0.00185486]
[1731263682781,0.061759,80875.0,80866.0,0.061765]
[1731263683271,0.3608,80877.0,80874.0,0.061759]
[1731263683576,0.00011016,80876.0,80874.0,0.061759]
[1731263684386,0.00011016,80876.0,80866.0,0.02470653]
[1731263685179,0.00011016,80876.0,80874.0,0.061759]
[1731263686686,0.00011016,80876.0,80866.0,0.02470653]
[1731263686879,0.00011016,80876.0,80873.0,0.06176]
[1731263687578,0.00011016,80876.0,80866.0,0.02470653]
[1731263688082,0.00011016,80876.0,80868.0,0.061764]
[1731263688277,0.00011016,80876.0,80871.0,0.061761]
[1731263688477,0.00011016,80876.0,80872.0,0.06176]
[1731263689686,0.00011016,80876.0,80868.0,0.3608]
[1731263689988,0.42256,80873.0,80866.0,0.02470653]
[1731263690184,0.3608,80873.0,80869.0,0.061762]
[1731263690382,0.00011016,80876.0,80869.0,0.061762]
[1731263690581,0.3608,80873.0,80869.0,0.061762]
[1731263691280,0.00011016,80876.0,80869.0,0.061762]
[1731263692277,0.00011016,80876.0,80870.0,0.061762]
[1731263692483,0.00011016,80876.0,80873.0,0.061759]
[1731263692887,0.3608,80882.0,80875.0,0.3608]
[1731263693091,0.3608,80882.0,80881.0,0.061754]
[1731263693287,0.3608,80890.0,80889.0,0.061748]
[1731263693890,0.00015115,80899.0,80882.0,0.3608]
[1731263694191,0.00015115,80899.0,80883.0,1.6374]
[1731263694386,0.00015115,80899.0,80883.0,1.82191872]
[1731263694582,0.00015115,80899.0,80889.0,0.3608]
[1731263694982,0.00015115,80899.0,80897.0,0.061741]
[1731263695187,0.00015115,80899.0,80890.0,0.061747]
[1731263696087,0.00015115,80899.0,80891.0,0.061746]
[1731263696287,0.00015115,80899.0,80886.0,0.3608]
[1731263696494,0.00015115,80899.0,80884.0,0.061751]
[1731263696692,0.36095115,80899.0,80883.0,0.1374]
[1731263696884,0.00015115,80899.0,80884.0,0.061751]
[1731263697084,0.3608,80896.0,80883.0,0.1374]
[1731263697382,0.3608,80892.0,80874.0,0.02472615]
[1731263697587,0.061756,80879.0,80874.0,0.02472615]
[1731263700388,0.061757,80878.0,80874.0,0.02472615]
[1731263700794,0.3608,80885.0,80874.0,0.02472615]
[1731263700989,0.061754,80881.0,80874.0,0.02472615]
[1731263701296,0.3608,80885.0,80874.0,0.02472615]
[1731263701700,0.3608,80878.0,80865.0,0.42397617]
[1731263701992,0.3608,80878.0,80865.0,0.06225617]
[1731263701993,0.061761,80872.0,80865.0,0.06225617]
[1731263702392,0.3608,80878.0,80865.0,0.06225617]
[1731263702598,0.3608,80871.0,80865.0,0.06225617]
[1731263702796,0.061765,80866.0,80865.0,0.06225617]
[1731263703502,0.3608,80871.0,80865.0,0.06225617]
[1731263703704,0.3608,80871.0,80869.0,0.061763]
[1731263704203,0.3608,80878.0,80872.0,0.06176]
[1731263704904,0.3608,80883.0,80872.0,0.06176]
[1731263705103,0.061757,80878.0,80866.0,0.1358]
[1731263705304,0.061762,80870.0,80865.0,0.06225617]
[1731263706102,0.3608,80866.0,80865.0,0.00185486]
[1731263708020,0.3609199,80866.0,80865.0,0.00185486]
[1731263709619,0.0001199,80866.0,80865.0,0.00185486]
[1731263712311,0.3609199,80866.0,80865.0,0.00185486]
[1731263713712,0.0001199,80866.0,80865.0,0.00185486]
[1731263715320,0.3609199,80866.0,80865.0,0.00185486]
[1731263717623,0.0001199,80866.0,80865.0,0.00185486]
[1731263718615,0.3711199,80866.0,80865.0,0.00185486]
[1731263718824,0.061778,80849.0,80842.0,0.061783]
[1731263719120,0.3711199,80866.0,80845.0,0.02473758]
[1731263719121,0.3608,80851.0,80845.0,0.02473758]
[1731263719314,0.061781,80846.0,80845.0,0.02473758]
[1731263719510,0.061781,80846.0,80836.0,0.0018556]
[1731263719713,0.061781,80846.0,80836.0,0.06416893]
[1731263719922,0.72224,80851.0,80836.0,0.0018556]
[1731263720121,0.3608,80851.0,80838.0,0.3608]
[1731263720310,0.06177,80860.0,80846.0,0.3608]
[1731263720517,0.061773,80856.0,80853.0,0.061775]
[1731263720717,0.061775,80854.0,80847.0,0.061779]
[1731263721018,0.15856173,80861.0,80846.0,0.3608]
[1731263721019,0.3608,80857.0,80852.0,0.061776]
[1731263721419,0.1437199,80866.0,80846.0,0.3608]
[1731263721420,0.0001199,80866.0,80846.0,0.3608]
[1731263721609,0.0001199,80866.0,80862.0,0.061768]
[1731263721610,0.3608,80863.0,80862.0,0.061768]
[1731263721810,0.0001199,80866.0,80847.0,0.13]
[1731263722313,0.3608,80865.0,80854.0,0.3608]
[1731263722613,0.3608,80858.0,80846.0,0.42320658]
[1731263722815,0.061772,80858.0,80851.0,0.061776]
[1731263723019,0.061774,80855.0,80846.0,0.42328658]
[1731263723218,0.061774,80855.0,80846.0,0.42232658]
[1731263723624,0.15856173,80861.0,80852.0,0.061776]
[1731263723823,0.15856173,80861.0,80846.0,0.42332658]
[1731263724017,0.3608,80864.0,80847.0,0.02473171]
[1731263724532,0.3608,80864.0,80861.0,0.061769]
[1731263724720,0.3608,80864.0,80847.0,0.02473171]
[1731263724920,0.3608,80864.0,80862.0,0.061768]
[1731263725126,0.3608,80874.0,80865.0,0.061766]
[1731263725425,0.36144,80884.0,80872.0,0.061761]
[1731263725621,0.15856173,80877.0,80865.0,0.061765]
[1731263725816,0.51936173,80867.0,80844.0,0.3608]
[1731263726016,0.15856173,80850.0,80844.0,0.422581]
[1731263726220,0.00011785,80849.0,80844.0,0.422581]
[1731263726423,0.03806194,80849.0,80844.0,0.422581]
[1731263726730,0.00011785,80849.0,80847.0,0.061779]
[1731263727326,0.00011785,80849.0,80844.0,0.3608]
[1731263727517,0.06178,80847.0,80843.0,0.0632372]
[1731263727718,0.06178,80847.0,80840.0,0.061785]
[1731263728223,0.061781,80846.0,80836.0,0.38739318]
[1731263728525,0.3608,80848.0,80836.0,0.44990226]
[1731263728731,0.061784,80842.0,80836.0,0.44990226]
[1731263728916,0.061784,80842.0,80836.0,0.42516468]
[1731263729115,0.061784,80842.0,80836.0,0.06436468]
[1731263729316,0.061785,80841.0,80836.0,0.06436468]
[1731263729520,0.3608,80841.0,80836.0,0.06436468]
[1731263729723,0.061787,80837.0,80836.0,0.06436468]
[1731263729930,0.39875055,80837.0,80823.0,0.00011273]
[1731263730224,0.03795055,80836.0,80825.0,0.3608]
[1731263730424,0.061791,80833.0,80827.0,0.061795]
[1731263730723,0.03795055,80832.0,80830.0,0.061793]
[1731263730926,0.3608,80837.0,80836.0,0.061788]
[1731263731220,0.39875077,80837.0,80836.0,0.061788]
[1731263731422,0.39875077,80837.0,80825.0,0.3608]
[1731263731630,0.061789,80836.0,80829.0,0.061793]
[1731263731820,0.36,80837.0,80830.0,0.061792]
[1731263732020,0.421788,80837.0,80830.0,0.061792]
[1731263732221,0.36,80837.0,80825.0,0.4236517]
[1731263732430,0.36,80837.0,80825.0,0.4227717]
[1731263732431,0.06179,80834.0,80825.0,0.4227717]
[1731263732628,0.36,80837.0,80825.0,0.0619717]
[1731263732629,0.03795091,80833.0,80825.0,0.0619717]
[1731263732824,0.03795091,80832.0,80823.0,0.00011273]
[1731263733133,0.1254,80835.0,80823.0,0.00011273]
[1731263733134,0.061794,80829.0,80823.0,0.00011273]
[1731263733321,0.03795091,80828.0,80823.0,0.06191073]
[1731263733629,0.03795091,80828.0,80826.0,0.061796]
[1731263733822,0.03795091,80827.0,80826.0,0.061796]
[1731263734125,0.36,80837.0,80826.0,0.061796]
[1731263734723,0.36,80837.0,80823.0,0.06080774]
[1731263734927,0.061793,80830.0,80823.0,0.06080774]
[1731263735118,0.51868824,80837.0,80823.0,0.06080774]
[1731263735317,0.061797,80825.0,80823.0,0.06080774]
[1731263736424,0.3608,80844.0,80824.0,0.15868824]
[1731263736727,0.3608,80844.0,80824.0,0.10579648]